fUSD/lending_fUSD_20240205
["ID","MTS","AMOUNT","RATE_DAILY","PERIOD"]
[313322587,1707150643074,-15818.04343094,0.00035,7]
[313322590,1707150643083,-1832.7,0.00035,5]
[313322593,1707150643092,-304.43083158,0.00035,7]
[313322596,1707150643102,-1845.89,0.00035,5]
[313322601,1707150643120,-2000.0,0.00035,2]
[313322606,1707150643141,-600.0,0.00035,3]
[313322609,1707150643155,-3000.0,0.00035,2]
[313322614,1707150643169,-12285.823134,0.00035423,10]
[313322617,1707150643182,-7208.09021676,0.00035423,10]
[313322620,1707150643193,-20274.57419348,0.00035423,10]
[313322623,1707150643206,-8050.0695076,0.00035423,10]
[313322625,1707150643220,-12696.7737916,0.00035423,10]
[313322628,1707150643233,-574.51049969,0.00035432,2]
[313322630,1707150643245,-1843.83,0.00035527,5]
[313322633,1707150643258,-1844.28,0.00035845,5]
[313322635,1707150643272,-154.34052397,0.00035879,2]
[313322638,1707150643285,-299.2518509,0.00036,4]
[313322640,1707150643298,-2000.0,0.00036,2]
[313322642,1707150643308,-193.87751556,0.000361,4]
[313322644,1707150643319,-1000.0,0.00036257,2]
[313322647,1707150643332,-1795.31,0.00036454,5]
[313322649,1707150643344,-166.95636459,0.0003664,9]
[313322651,1707150643357,-206.0,0.00036807,19]
[313322654,1707150643371,-176.95,0.000369,2]
[313322656,1707150643384,-500.0,0.000369,2]
[313322658,1707150643396,-47931.04563277,0.00037,4]
[313322661,1707150643409,-311.38707581,0.00037,4]
[313322663,1707150643422,-671.49248102,0.00037,7]
[313322665,1707150643435,-750.0,0.00037,2]
[313322666,1707150643453,-2000.0,0.00037,2]
[313322667,1707150643467,-650.0,0.00037,3]
[313322668,1707150643480,-465.43297161,0.00037,2]
[313322669,1707150643493,-574.51049969,0.00037011,2]
[313322670,1707150643505,-359.52,0.00037099,2]
[313322671,1707150643518,-352.52,0.00037448,2]
[313322672,1707150643530,-275.29382891,0.00037448,2]
[313322673,1707150643548,-224.70617109,0.00037448,2]
[313322674,1707150643560,-1788.52,0.00037514,5]
[313322675,1707150643577,-45000.0,0.0003755,2]
[313322676,1707150643592,-154.34052397,0.0003778,2]
[313322677,1707150643603,-208.9505522,0.0003778,2]
[313322678,1707150643614,-162.32463721,0.0003778,2]
[313322679,1707150643629,-641.41825187,0.0003778,2]
[313322680,1707150643642,-6211.54191351,0.0003788,3]
[313322681,1707150643655,-658132.57300395,0.0003788,2]
[313322682,1707150643670,-11011.4519925,0.0003788,2]
[313322683,1707150643687,-50980.94642788,0.0003788,2]
[313322684,1707150643702,-2497.9170787,0.0003788,2]
[313322685,1707150643712,-1127.74689428,0.0003788,2]
[313322686,1707150643722,-5028.82789526,0.0003788,2]
[313322687,1707150643733,-200.0,0.0003789,7]
[313322688,1707150643745,-289.49961172,0.00037899,2]
[313322689,1707150643757,-224.99142662,0.00037899,2]
[313322690,1707150643773,-1000.0,0.000379,2]
[313322691,1707150643784,-41261.19729341,0.000379,3]
[313322692,1707150643797,-380.16156235,0.000379,3]
[313322693,1707150643827,-155.0,0.00022799,2]
[313322694,1707150643841,-996.14981071,0.000379,3]
[313322695,1707150643855,-1244.01085334,0.000379,3]
[313322696,1707150643878,-619.83843765,0.000379,3]
[313322697,1707150643895,-426.4512,0.000379,3]
[313322698,1707150643912,-262.6827685,0.000379,3]
[313322699,1707150643927,-447.201,0.000379,3]
[313322700,1707150643961,-358.76313846,0.00022799,2]
[313322701,1707150643973,-1064.42655819,0.00027899,2]
[313322702,1707150643985,-14384.25870334,0.000379,3]
[313322710,1707150645636,-155.0,0.00022799,2]
[313322711,1707150645648,-1482.68824336,0.0003778,2]
[313322712,1707150645658,-281.70091304,0.000379,3]
[313322713,1707150645895,-347.40928814,0.00022799,2]
[313322714,1707150645908,-112.20811187,0.000379,3]
[313322729,1707151127930,243.39486812,0.00022569,2]
[313322730,1707151128964,249.72606267,0.00022569,2]
[313322731,1707151160675,489.00832469,0.00022569,2]
[313322732,1707151171138,10565.52022496,0.00022569,2]
[313322733,1707151173646,290.05366865,0.00022569,2]
[313322734,1707151175450,365.44908735,0.00022569,2]
[313322735,1707151213355,175.5,0.00026955,120]
[313322738,1707151332077,152.77872294,0.00022474,2]
[313322739,1707151443054,859.18344497,0.00022569,2]
[313322740,1707151448188,203.43612147,0.00022569,2]
[313322741,1707151451430,2154.11089762,0.00022569,2]
[313322758,1707151831580,-859.18344497,0.00022696,2]
[313322759,1707151831590,-150.0,0.00022697,2]
[313322760,1707151831600,-33.17861648,0.00022697,2]
[313322761,1707151831634,-116.82138352,0.00022697,2]
[313322762,1707151831643,-10416.81623648,0.00022698,2]
[313322763,1707151831655,-4220.25795151,0.00022698,2]
[313322764,1707151831667,-2850.28784667,0.00022698,2]
[313322765,1707151831677,-5241.54538404,0.00022699,2]
[313322766,1707151831692,-402.56480539,0.00022699,2]
[313322767,1707151831704,-3070.59413994,0.00022699,2]
[313322768,1707151831713,-7773.5097,0.000227,2]
[313322769,1707151831723,-189.7468,0.000227,2]
[313322770,1707151831732,-557.8207,0.000227,2]
[313322771,1707151831741,-3831.87981945,0.000227,2]
[313322772,1707151831751,-2500.0,0.000227,2]
[313322773,1707151831760,-250.67480771,0.00022798,2]
[313322774,1707151831769,-155.82949393,0.00022798,2]
[313322775,1707151831778,-389.98,0.00022798,2]
[313322776,1707151831787,-244.79450142,0.00022798,2]
[313322777,1707151831797,-250.33333172,0.00022798,2]
[313322778,1707151831806,-487.43488106,0.00022798,2]
[313322779,1707151831815,-292.13000086,0.00022798,2]
[313322780,1707151831825,-290.2863966,0.00022798,2]
[313322781,1707151831835,-203.89851489,0.00022798,2]
[313322782,1707151831845,-284.30049318,0.00022798,2]
[313322783,1707151831854,-205.19029883,0.00022798,2]
[313322784,1707151831863,-155.0,0.00022799,2]
[313322785,1707151831873,-319.62,0.00022799,2]
[313322786,1707151831883,-4943.64453554,0.00022799,2]
[313322787,1707151831895,-1003.23766428,0.00022799,2]
[313322788,1707151831907,-1508.51394218,0.00022799,2]
[313322789,1707151831916,-250.8272,0.000228,2]
[313322790,1707151831925,-20861.9681,0.000228,2]
[313322791,1707151831934,-24392.22039371,0.000228,2]
[313322792,1707151831947,-478.95,0.000228,2]
[313322823,1707151837585,-852.917178,0.000228,2]
[313322824,1707151837644,-287.85,0.000228,2]
[313322825,1707151837871,-1273.19236374,0.000228,2]
[313322826,1707151837884,-332.69995427,0.000228,2]
[313322827,1707151837938,-3260.153184,0.000228,2]
[313322828,1707151837949,-22919.85131468,0.000228,2]
[313322829,1707151837983,-358.01197968,0.000228,2]
[313322830,1707151837994,-462.09903594,0.000228,2]
[313322831,1707151838015,-4262.7650308,0.000228,2]
[313322832,1707151838026,-14770.70711401,0.000228,2]
[313322965,1707151840912,-591.05659528,0.000228,2]
[313322966,1707151840924,-8944.93114976,0.000228,2]
[313322967,1707151840979,-6707.82207392,0.000228,2]
[313322968,1707151840991,-425.99,0.000228,2]
[313322969,1707151841002,-2284.82672521,0.000228,2]
[313322970,1707151841013,-3340.35519795,0.000228,2]
[313322971,1707151841045,-664.12836649,0.000228,2]
[313322972,1707151841056,-3389.47234256,0.000228,2]
[313322973,1707151841065,-10659.39700809,0.000228,2]
[313322974,1707151841077,-1974.78793142,0.000228,2]
[313322975,1707151841088,-500.0,0.000228,2]
[313322976,1707151841111,-477.0484,0.000228,2]
[313322978,1707151841122,-652.20074213,0.000228,2]
[313323041,1707151842598,-24395.92794834,0.000228,2]
[313323044,1707151842610,-4934.58402407,0.000228,2]
[313323053,1707151842660,-186632.55284595,0.000228,2]
[313323056,1707151842669,-232.0909,0.000228,2]
[313323059,1707151842680,-279.64,0.00024551,2]
[313323062,1707151842690,-835.97,0.00024828,2]
[313323064,1707151842699,-499.99,0.00024967,2]
[313323066,1707151842708,-210.0,0.00024967,2]
[313323068,1707151842718,-18687.02788768,0.00025,4]
[313323069,1707151842727,-324.08880532,0.00025607,2]
[313323070,1707151842737,-12098.9785034,0.0002609,2]
[313323071,1707151842746,-400.0,0.00026109,2]
[313323072,1707151842756,-150.0,0.00026118,2]
[313323073,1707151842765,-3831.87981939,0.00026157,3]
[313323074,1707151842774,-2000.0,0.00026165,2]
[313323075,1707151842783,-250.0,0.00026165,2]
[313323076,1707151842793,-250.0,0.00026173,2]
[313323077,1707151842802,-293.74,0.00026267,2]
[313323078,1707151842811,-279.64,0.00026815,2]
[313323079,1707151842820,-2308.89083101,0.00026928,5]
[313323080,1707151842830,-23900.0,0.00026928,2]
[313323081,1707151842840,-600.0,0.00027135,2]
[313323082,1707151842850,-250.0,0.00027214,2]
[313323083,1707151842859,-166.97,0.00027453,2]
[313323084,1707151842869,-151.78,0.00027648,2]
[313323085,1707151842878,-2000.0,0.000279,3]
[313323086,1707151842888,-181.42236999,0.0002799,2]
[313323087,1707151842897,-132419.03700587,0.00028,2]
[313323088,1707151842906,-151.26,0.00028075,2]
[313323089,1707151842915,-279.64,0.00029079,2]
[313323090,1707151842924,-400.0,0.00029372,2]
[313323091,1707151842933,-3831.87981939,0.00029614,4]
[313323092,1707151842943,-155.0,0.0003,2]
[313323093,1707151842953,-681.0,0.0003,15]
[313323094,1707151842963,-1000.0,0.0003,2]
[313323096,1707151842973,-1000.0,0.0003,2]
[313323097,1707151842982,-1000.0,0.0003,2]
[313323100,1707151842992,-1000.0,0.0003,2]
[313323101,1707151843001,-1000.0,0.0003,2]
[313323103,1707151843011,-600.0,0.00030527,2]
[313323106,1707151843020,-279.64,0.00031343,2]
[313323108,1707151843030,-36974.2137471,0.000318,3]
[313323110,1707151843039,-400.0,0.00032636,2]
[313323111,1707151843048,-153.08,0.000327,2]
[313323112,1707151843057,-3831.87981939,0.00033071,6]
[313323113,1707151843066,-279.64,0.00033607,2]
[313323114,1707151843112,-600.0,0.00033919,2]
[313323115,1707151843121,-766.07655536,0.00034,4]
[313323116,1707151843130,-150.0,0.000347,2]
[313323117,1707151843139,-9000.73304889,0.000349,4]
[313323118,1707151843149,-522.2822725,0.000349,2]
[313323119,1707151843158,-522.28227244,0.000349,2]
[313323120,1707151843167,-522.28227244,0.000349,2]
[313323121,1707151843177,-15818.04343094,0.00035,7]
[313323122,1707151843185,-275.8930555,0.00035323,9]
[313323123,1707151843194,-1838.91,0.00035336,5]
[313323124,1707151843204,-206.0,0.00035384,2]
[313323125,1707151843214,-155.25463852,0.00035417,2]
[313323126,1707151843223,-1050.01826432,0.00035421,4]
[313323127,1707151843232,-576.81622647,0.00035421,4]
[313323128,1707151843241,-1224.74365908,0.00035421,4]
[313323129,1707151843250,-12822.81604856,0.00035423,10]
[313323130,1707151843259,-12473.51907975,0.00035423,10]
[313323131,1707151843270,-7354.64857294,0.00035423,10]
[313323132,1707151843281,-13881.727538,0.00035423,10]
[313323133,1707151843290,-1795.38,0.00035423,5]
[313323134,1707151843299,-33108.0,0.00035676,2]
[313323135,1707151843309,-279.64,0.00035871,2]
[313323136,1707151843318,-400.0,0.000359,2]
[313323137,1707151843327,-301.59893523,0.00036,4]
[313323138,1707151843336,-176.6534,0.00036301,2]
[313323139,1707151843346,-152.26580912,0.00036301,2]
[313323140,1707151843355,-210.3186919,0.00036301,9]
[313323141,1707151843365,-531.00968382,0.00036301,2]
[313323142,1707151843374,-668.0,0.000364,5]
[313323143,1707151843384,-133480.88714623,0.000364,2]
[313323144,1707151843397,-986.18128839,0.000364,2]
[313323145,1707151843420,-2963.27275651,0.000364,2]
[313323146,1707151843435,-6829.81742293,0.000364,2]
[313323147,1707151843447,-165895.87313021,0.000364,2]
[313323148,1707151843456,-653.05612415,0.00036401,4]
[313323149,1707151843465,-362.66839239,0.00036401,4]
[313323150,1707151843474,-288.72542157,0.00036402,4]
[313323151,1707151843484,-162.76477441,0.00036402,4]
[313323152,1707151843492,-158.08966468,0.00036402,4]
[313323153,1707151843502,-308.59850072,0.00036402,4]
[313323154,1707151843511,-526.82445785,0.00036402,4]
[313323155,1707151843520,-155.60915498,0.00036402,4]
[313323156,1707151843529,-155.0,0.00036402,4]
[313323157,1707151843538,-389.54943894,0.00036402,4]
[313323158,1707151843547,-319.8182542,0.00036402,4]
[313323159,1707151843556,-294.63372559,0.00036402,4]
[313323160,1707151843565,-157.67,0.00036403,2]
[313323161,1707151843574,-3831.87981939,0.00036529,8]
[313323162,1707151843583,-153.08,0.000367,3]
[313323163,1707151843592,-153.08,0.000367,3]
[313323164,1707151843602,-531.00968382,0.00036922,2]
[313323165,1707151843611,-205.26837847,0.00036937,7]
[313323166,1707151843621,-522.28227244,0.00036975,2]
[313323167,1707151843631,-671.49248102,0.00037,7]
[313323168,1707151843639,-155.0,0.00037137,7]
[313323169,1707151843649,-1111.72006212,0.00037142,3]
[313323170,1707151843659,-1016.33226178,0.00037142,3]
[313323171,1707151843668,-1148.5763968,0.00037142,3]
[313323172,1707151843678,-600.0,0.00037311,2]
[313323173,1707151843688,-337.97428938,0.00037517,4]
[313323174,1707151843697,-531.00968382,0.00037543,2]
[313323175,1707151843706,-206.0,0.00037622,7]
[313323176,1707151843716,-1050.55467194,0.00037778,4]
[313323177,1707151843725,-655.36839749,0.00037779,4]
[313323178,1707151843734,-155.0,0.00037779,4]
[313323179,1707151843744,-248.88267556,0.00037779,4]
[313323180,1707151843754,-194.23910926,0.00037779,4]
[313323181,1707151843763,-26538.0,0.0003779,2]
[313323182,1707151843772,-300.0,0.00037879,2]
[313323183,1707151843781,-313.66657883,0.00037879,2]
[313323184,1707151843791,-3354.66951514,0.00037894,4]
[313323185,1707151843800,-312.32364792,0.00037895,4]
[313323186,1707151843810,-337.3888335,0.00037896,4]
[313323188,1707151843819,-155.0,0.00037897,4]
[313323189,1707151843828,-228.41286714,0.00037898,4]
[313323190,1707151843837,-1857.7043671,0.00037898,4]
[313323191,1707151843847,-155.41660693,0.00037898,4]
[313323192,1707151843857,-157.68028817,0.00037898,2]
[313323193,1707151843866,-177.98165687,0.00037898,4]
[313323194,1707151843876,-577.81805629,0.00037898,4]
[313323195,1707151843888,-159.81808103,0.00037898,4]
[313323196,1707151843898,-2618.6304587,0.00037898,4]
[313323197,1707151843908,-194.3879058,0.00037898,2]
[313323198,1707151843918,-2029.34482346,0.00037898,4]
[313323199,1707151843928,-1146.08153699,0.00037898,2]
[313323200,1707151843938,-1716.78142956,0.00037898,4]
[313323201,1707151843948,-1117.6393,0.00037898,4]
[313323202,1707151843958,-1786.98,0.00037898,5]
[313323203,1707151843967,-313.41785195,0.00037899,2]
[313323204,1707151843977,-1399.32515388,0.00037899,2]
[313323205,1707151843986,-155.0,0.000379,4]
[313323206,1707151843995,-155.0,0.000379,4]
[313323207,1707151844005,-267949.17372323,0.000379,3]
[313323208,1707151844018,-2186.64425446,0.000379,3]
[313323209,1707151844030,-470.02665923,0.000379,3]
[313323210,1707151844042,-1021.40185166,0.000379,3]
[313323211,1707151844054,-900.9797628,0.000379,3]
[313323212,1707151844066,-21844.65733859,0.000379,3]
[313323213,1707151844077,-17112.8391125,0.000379,3]
[313323214,1707151844088,-574.08241182,0.000379,3]
[313323215,1707151844100,-594.743224,0.000379,3]
[313323216,1707151844116,-16999.37036952,0.000379,3]
[313323217,1707151844127,-529.73999,0.000379,3]
[313323222,1707151845686,-792.82238637,0.00037899,4]
[313323223,1707151845696,-7689.27761363,0.000379,3]
[313323224,1707151845709,-353.87332081,0.000379,3]
[313323239,1707151892802,169.09267487,0.00022999,3]
[313323248,1707152029230,3288.03842882,0.00022797,4]
[313323249,1707152302526,152.80351994,0.00022499,2]
[313323250,1707152359675,562.0,0.00027,30]
[313323251,1707152658111,7264.08167228,0.000225,2]
[313323252,1707152658135,85459.02042772,0.000225,2]
[313323253,1707152792996,152.80351991,0.00022489,2]
[313323254,1707152794901,206.6722,0.000225,2]
[313323255,1707152867927,367.73168343,0.00022924,3]
[313323256,1707152907315,160113.8259,0.0002249,2]
[313323265,1707152929838,269.61,0.00021062,2]
[313323294,1707153031858,-527.07440555,0.00022575,2]
[313323295,1707153031868,-150.0,0.00022576,2]
[313323296,1707153031877,-7812.84831677,0.00022577,2]
[313323297,1707153031886,-7513.35583929,0.00022578,2]
[313323298,1707153031895,-264.88455642,0.00022585,2]
[313323299,1707153031905,-31449.29864251,0.00022586,2]
[313323300,1707153031914,-79725.00379591,0.00022588,2]
[313323301,1707153031923,-478.4641,0.000226,2]
[313323302,1707153031932,-1752.31560848,0.00022696,2]
[313323303,1707153031941,-203.99838507,0.00022698,2]
[313323304,1707153031949,-2314.4807,0.00022699,2]
[313323305,1707153031959,-33458.04314514,0.00022699,2]
[313323306,1707153031968,-500.0,0.000227,2]
[313323307,1707153031977,-4102.9362,0.000227,2]
[313323308,1707153031986,-490.2424,0.000227,2]
[313323309,1707153031995,-15739.7016,0.000227,2]
[313323310,1707153032005,-100000.0,0.000227,2]
[313323311,1707153032014,-203.902,0.000227,2]
[313323312,1707153032023,-250.0,0.0002276,2]
[313323313,1707153032032,-156.55594898,0.00022796,2]
[313323314,1707153032041,-156.85887799,0.00022797,2]
[313323315,1707153032051,-162.35540628,0.00022797,2]
[313323316,1707153032060,-504.93527156,0.00022797,2]
[313323317,1707153032070,-240.82454042,0.00022797,2]
[313323318,1707153032079,-544.47280916,0.00022797,2]
[313323319,1707153032089,-5251.65154953,0.00022797,2]
[313323320,1707153032098,-1127.87389334,0.00022797,2]
[313323321,1707153032107,-157.62599329,0.00022797,2]
[313323322,1707153032116,-200.0,0.00022797,2]
[313323323,1707153032126,-344.65578857,0.00022797,2]
[313323324,1707153032135,-1719.10503118,0.00022797,2]
[313323325,1707153032144,-3152.92101953,0.00022797,2]
[313323326,1707153032153,-235.11918748,0.00022797,2]
[313323327,1707153032162,-500.0,0.00022797,2]
[313323328,1707153032171,-156.44582694,0.00022797,2]
[313323329,1707153032181,-155.0,0.00022797,2]
[313323330,1707153032190,-924.290853,0.00022797,2]
[313323331,1707153032200,-279.88780465,0.00022797,2]
[313323332,1707153032210,-292.81919456,0.00022797,2]
[313323333,1707153032219,-212.55716275,0.00022798,2]
[313323334,1707153032228,-196.6804573,0.00022798,2]
[313323335,1707153032237,-162.14058827,0.00022798,2]
[313323336,1707153032247,-258.00139996,0.00022798,2]
[313323337,1707153032256,-1467.02299146,0.00022798,2]
[313323338,1707153032266,-499.99,0.00022798,2]
[313323339,1707153032275,-2000.0,0.00022924,2]
[313323340,1707153032284,-794.92293263,0.0002296,2]
[313323341,1707153032293,-177.3874531,0.00022998,2]
[313323342,1707153032302,-196.42517432,0.00022998,2]
[313323343,1707153032311,-156.68878088,0.00022998,2]
[313323344,1707153032319,-224.31139879,0.00022998,2]
[313323345,1707153032328,-242.42076785,0.00022998,2]
[313323346,1707153032337,-162.56645006,0.00022998,2]
[313323347,1707153032347,-156.28850165,0.00022998,2]
[313323348,1707153032356,-155.48291893,0.00022998,2]
[313323349,1707153032365,-430.81771307,0.00022998,2]
[313323350,1707153032374,-156.73249465,0.00022999,2]
[313323351,1707153032384,-450.0,0.00022999,2]
[313323352,1707153032393,-6389.97610474,0.00022999,2]
[313323353,1707153032402,-198.60489954,0.00022999,2]
[313323354,1707153032411,-83688.95161655,0.00023,2]
[313323355,1707153032420,-2602.60078181,0.00023,2]
[313323356,1707153032429,-269.61,0.00023326,2]
[313323357,1707153032438,-2480.15210854,0.00024078,2]
[313323358,1707153032459,-880.7669246,0.00024078,2]
[313323359,1707153032470,-255.4812832,0.00024078,2]
[313323360,1707153032481,-864.68441708,0.00024078,2]
[313323366,1707153037769,-7511.69383817,0.00024078,2]
[313323392,1707153038138,-11907.22142841,0.00024078,2]
[313323393,1707153038148,-250.0,0.00024082,2]
[313323394,1707153038158,-151.25,0.00024116,2]
[313323395,1707153038168,-250.0,0.00024658,2]
[313323396,1707153038178,-210.0,0.00024834,2]
[313323397,1707153038188,-18687.02788768,0.00025,4]
[313323398,1707153038198,-350.0,0.00025,3]
[313323399,1707153038208,-920.0,0.00025325,2]
[313323400,1707153038219,-150.52,0.00025448,2]
[313323401,1707153038229,-269.61,0.00025589,2]
[313323402,1707153038239,-324.08880532,0.0002565,2]
[313323403,1707153038250,-150.0,0.00026079,2]
[313323404,1707153038260,-346.08367652,0.0002609,2]
[313323407,1707153038275,-11752.89482688,0.0002609,2]
[313323409,1707153038284,-1752.31560848,0.00026093,3]
[313323411,1707153038294,-150.52,0.00026818,2]
[313323413,1707153038303,-400.0,0.00027,3]
[313323415,1707153038313,-151.25,0.00027023,2]
[313323417,1707153038322,-180.0,0.00027317,2]
[313323418,1707153038332,-269.61,0.00027853,2]
[313323420,1707153038341,-43393.39981225,0.000279,2]
[313323423,1707153038358,-9729.1938462,0.000279,2]
[313323426,1707153038370,-3776.33318559,0.000279,2]
[313323429,1707153038396,-703.75012937,0.000279,2]
[313323484,1707153041054,-5877.96628553,0.000279,2]
[313323485,1707153041067,-690.34076693,0.000279,2]
[313323486,1707153041080,-1758.93979561,0.000279,2]
[313323487,1707153041166,-645.07210633,0.000279,2]
[313323488,1707153041178,-4265.39244857,0.000279,2]
[313323489,1707153041190,-269.2302333,0.000279,2]
[313323490,1707153041266,-3971.08109032,0.000279,2]
[313323491,1707153041276,-6477.0554248,0.00028,2]
[313323492,1707153041289,-468.0044506,0.00028,2]
[313323493,1707153041301,-810.49335623,0.00028,2]
[313323494,1707153041317,-481.50199841,0.00028,2]
[313323531,1707153042794,-6163.55891678,0.00028,2]
[313323532,1707153042853,-39306.83454904,0.00028,2]
[313323533,1707153042863,-920.0,0.0002849,2]
[313323534,1707153042872,-152.80351991,0.00028658,2]
[313323535,1707153042882,-450.0,0.00029,3]
[313323536,1707153042892,-1752.31560848,0.0002949,4]
[313323537,1707153042902,-155.0,0.0003,2]
[313323538,1707153042912,-269.61,0.00030117,2]
[313323539,1707153042922,-500.0,0.00031,3]
[313323540,1707153042934,-920.0,0.00031656,2]
[313323541,1707153042944,-200.0,0.00032228,2]
[313323542,1707153042953,-2194.30692835,0.00032344,28]
[313323543,1707153042963,-269.61,0.00032381,2]
[313323544,1707153042972,-205.0,0.00032384,2]
[313323545,1707153042982,-153.11,0.000327,2]
[313323546,1707153042992,-1752.31560848,0.00032887,6]
[313323547,1707153043001,-378.31515636,0.000329,2]
[313323548,1707153043011,-550.0,0.00033,3]
[313323549,1707153043021,-766.07655536,0.00034,4]
[313323550,1707153043030,-205.0,0.00034356,6]
[313323551,1707153043040,-151.78,0.00034381,2]
[313323552,1707153043049,-269.61,0.00034645,2]
[313323553,1707153043059,-920.0,0.00034822,2]
[313323554,1707153043068,-152.80351991,0.00034826,2]
[313323555,1707153043077,-8993.1606947,0.000349,4]
[313323556,1707153043086,-522.28227244,0.000349,2]
[313323557,1707153043096,-522.28227244,0.000349,2]
[313323558,1707153043105,-156.43179662,0.00035,4]
[313323559,1707153043115,-15797.5264196,0.00035,7]
[313323560,1707153043124,-1843.54,0.00035,5]
[313323561,1707153043134,-1804.15,0.00035,5]
[313323563,1707153043143,-1845.89,0.00035,5]
[313323565,1707153043153,-1795.0,0.00035,5]
[313323566,1707153043163,-600.0,0.00035,3]
[313323568,1707153043172,-252.47,0.000354,2]
[313323570,1707153043182,-12581.43243661,0.00035524,10]
[313323572,1707153043191,-10205.6065198,0.00035588,10]
[313323573,1707153043200,-6797.18850778,0.00035621,13]
[313323575,1707153043209,-6246.7773921,0.00035621,13]
[313323576,1707153043218,-50000.0,0.00035621,15]
[313323578,1707153043228,-153.58945095,0.00036064,7]
[313323579,1707153043237,-1752.31560848,0.00036284,7]
[313323580,1707153043247,-2000.0,0.00036301,4]
[313323581,1707153043257,-205.0,0.00036329,10]
[313323582,1707153043270,-153.11,0.000367,3]
[313323583,1707153043279,-153.11,0.000367,3]
[313323584,1707153043289,-269.61,0.00036909,2]
[313323585,1707153043298,-231.51439725,0.00037,7]
[313323586,1707153043308,-650.0,0.00037,3]
[313323587,1707153043351,-1077.23381048,0.00037142,3]
[313323588,1707153043361,-468.0,0.00037145,2]
[313323589,1707153043371,-151.1132549,0.00037521,2]
[313323590,1707153043380,-150.0,0.00037607,2]
[313323591,1707153043389,-150.0,0.00037617,2]
[313323592,1707153043400,-1500.0,0.00037619,2]
[313323593,1707153043410,-150.0,0.0003762,2]
[313323594,1707153043419,-150.0,0.00037622,2]
[313323595,1707153043428,-150.0,0.00037637,2]
[313323596,1707153043438,-150.0,0.00037646,2]
[313323597,1707153043447,-150.0,0.00037659,2]
[313323598,1707153043457,-150.0,0.00037662,2]
[313323599,1707153043466,-176.67463001,0.00037671,2]
[313323600,1707153043475,-1500.0,0.00037676,2]
[313323601,1707153043485,-150.0,0.00037682,2]
[313323602,1707153043494,-150.0,0.000377,2]
[313323603,1707153043504,-150.0,0.00037702,2]
[313323604,1707153043513,-300.0,0.00037707,2]
[313323605,1707153043522,-150.0,0.00037709,2]
[313323606,1707153043531,-1585.87357355,0.00037709,2]
[313323607,1707153043541,-1124.25643306,0.00037716,2]
[313323608,1707153043550,-150.0,0.0003772,2]
[313323609,1707153043562,-1500.0,0.00037722,2]
[313323610,1707153043571,-300.0,0.00037728,2]
[313323611,1707153043581,-150.0,0.00037732,2]
[313323612,1707153043808,-150.0,0.00037732,2]
[313323613,1707153043819,-150.0,0.00037738,2]
[313323614,1707153043828,-150.0,0.00037752,2]
[313323615,1707153043839,-150.0,0.0003776,2]
[313323616,1707153043849,-150.0,0.00037766,2]
[313323617,1707153043859,-531.45545055,0.00037791,2]
[313323618,1707153043868,-152.42071175,0.000378,2]
[313323619,1707153043877,-150.0,0.00037811,2]
[313323620,1707153043887,-150.0,0.00037816,2]
[313323621,1707153043896,-150.0,0.00037819,2]
[313323622,1707153043905,-2069.16907,0.0003782,2]
[313323623,1707153043914,-150.0,0.00037841,2]
[313323624,1707153043923,-150.0,0.00037848,2]
[313323625,1707153043932,-150.0,0.00037856,2]
[313323626,1707153043941,-150.0,0.00037859,2]
[313323627,1707153043950,-300.0,0.00037867,2]
[313323628,1707153043959,-300.0,0.00037868,2]
[313323629,1707153043968,-150.0,0.00037869,2]
[313323630,1707153043977,-150.0,0.00037872,2]
[313323631,1707153043987,-150.0,0.00037874,2]